bitfinex/quotes_BTCUSD_20220226
["timestamp","ask_amount","ask_price","bid_price","bid_amount"]
[1645842982071,0.9194,39549.0,39548.0,0.04778767]
[1645842982271,1.7688,39548.0,39543.0,0.0011]
[1645842982471,0.7688,39546.0,39543.0,0.0011]
[1645842982675,0.8688,39544.0,39543.0,0.0011]
[1645842982911,1.44988972,39544.0,39543.0,0.0011]
[1645842983415,1.34988972,39544.0,39543.0,0.0011]
[1645842983612,1.35088972,39544.0,39543.0,0.0011]
[1645842984011,1.35088972,39544.0,39543.0,0.0001]
[1645842984611,1.45088972,39544.0,39543.0,0.0001]
[1645842984812,1.44988972,39544.0,39543.0,0.0001]
[1645842987668,1.34988972,39544.0,39543.0,0.0001]
[1645842987871,0.58108972,39544.0,39543.0,0.0001]
[1645842988266,1.34988972,39544.0,39543.0,0.0001]
[1645842988468,0.58108972,39544.0,39543.0,0.0001]
[1645842988668,0.23533922,39544.0,39543.0,0.0001]
[1645842989868,0.18473922,39544.0,39543.0,0.0001]
[1645842991117,0.23473922,39544.0,39543.0,0.0001]
[1645842991915,0.18473922,39544.0,39543.0,0.0001]
[1645842993217,0.75,39543.0,39542.0,0.0026436]
[1645842993413,0.75,39543.0,39542.0,0.00302017]
[1645842994015,1.0957505,39543.0,39542.0,0.00302017]
[1645842994266,0.75,39543.0,39542.0,0.00302017]
[1645842994471,0.75,39543.0,39542.0,0.0026436]
[1645842997669,0.751,39543.0,39542.0,0.0026436]
[1645842998826,0.75,39543.0,39542.0,0.0026436]
[1645843003468,1.0957505,39543.0,39542.0,0.0026436]
[1645843003667,0.75,39543.0,39542.0,0.0026436]
[1645843005819,0.1,39544.0,39542.0,0.0026436]
[1645843006220,0.05,39544.0,39542.0,0.0026436]
[1645843006619,0.0111,39548.0,39542.0,0.0026436]
[1645843006820,0.7789,39548.0,39542.0,0.0026436]
[1645843007021,0.19163226,39545.0,39542.0,0.0026436]
[1645843007220,0.1,39545.0,39542.0,0.0026436]
[1645843007623,0.1101,39548.0,39541.0,0.00542241]
[1645843007823,0.1193,39549.0,39542.0,0.00037339]
[1645843008024,0.001,39550.0,39542.0,0.00037339]
[1645843008821,0.1912442,39551.0,39541.0,0.00542241]
[1645843009021,0.1912442,39551.0,39544.0,0.00037337]
[1645843009866,0.2412442,39551.0,39544.0,0.00037337]
[1645843010067,0.2412442,39551.0,39541.0,0.35117291]
[1645843010268,0.2412442,39551.0,39546.0,0.00037516]
[1645843010568,0.297,39553.0,39546.0,0.00037516]
[1645843010770,0.347,39553.0,39546.0,0.00037516]
[1645843011274,0.347,39553.0,39541.0,0.56427509]
[1645843011577,0.347,39553.0,39548.0,0.0003495]
[1645843011578,0.101,39553.0,39548.0,0.0003495]
[1645843011969,0.001,39553.0,39548.0,0.0003495]
[1645843012170,0.051,39553.0,39548.0,0.0003495]
[1645843012469,0.001,39553.0,39543.0,0.55885268]
[1645843012670,0.001,39553.0,39549.0,0.0003495]
[1645843012929,0.17829692,39554.0,39549.0,0.0003495]
[1645843013730,0.17829692,39554.0,39544.0,0.55885268]
[1645843013934,0.17829692,39554.0,39550.0,0.00035002]
[1645843014732,0.4665,39558.0,39550.0,0.00035002]
[1645843014932,0.4665,39558.0,39547.0,0.21310218]
[1645843015132,0.4665,39558.0,39548.0,0.55885268]
[1645843015331,0.4665,39558.0,39550.0,0.00037566]
[1645843015531,0.241,39560.0,39550.0,0.00037566]
[1645843015733,0.43390094,39560.0,39550.0,0.00037566]
[1645843015932,0.43390094,39560.0,39550.0,0.55922834]
[1645843016132,0.43390094,39560.0,39550.0,0.55885268]
[1645843016332,0.48390094,39560.0,39553.0,0.00037564]
[1645843016535,0.24290094,39560.0,39553.0,0.00037564]
[1645843017369,0.24290094,39560.0,39550.0,0.3457505]
[1645843017570,0.24290094,39560.0,39554.0,0.00037476]
[1645843018571,0.24290094,39560.0,39550.0,0.3457505]
[1645843018774,0.24290094,39560.0,39554.0,0.00037477]
[1645843019572,0.24490094,39560.0,39554.0,0.00037477]
[1645843019773,0.24490094,39560.0,39550.0,0.3457505]
[1645843019973,0.24490094,39560.0,39554.0,0.00037477]
[1645843020819,0.24290094,39560.0,39550.0,0.3457505]
[1645843021016,0.24290094,39560.0,39554.0,0.00037489]
[1645843022015,0.24290094,39560.0,39549.0,0.55885268]
[1645843022216,0.32133807,39563.0,39554.0,0.00037489]
[1645843022417,0.1101,39563.0,39554.0,0.00037489]
[1645843022615,0.0601,39563.0,39554.0,0.00037489]
[1645843023215,0.0601,39563.0,39549.0,0.55885268]
[1645843023418,0.0601,39563.0,39554.0,0.00037489]
[1645843024471,0.0601,39563.0,39549.0,0.55885268]
[1645843024666,0.0601,39563.0,39554.0,0.00037487]
[1645843025267,0.0601,39563.0,39554.0,0.20656503]
[1645843025468,0.0601,39563.0,39555.0,0.3457505]
[1645843025469,0.0101,39563.0,39555.0,0.3457505]
[1645843025668,0.21123807,39565.0,39554.0,0.20619016]
[1645843025868,0.21123807,39566.0,39554.0,0.20656503]
[1645843026067,0.00035134,39564.0,39554.0,0.20656503]
[1645843026267,0.00035134,39564.0,39554.0,0.00037487]
[1645843026869,0.21123807,39567.0,39551.0,0.3457505]
[1645843027071,0.0001057,39564.0,39551.0,0.3457505]
[1645843027269,0.0001057,39564.0,39554.0,0.22726615]
[1645843028029,0.8188,39565.0,39554.0,0.22726615]
[1645843028229,0.0001057,39564.0,39554.0,0.22726615]
[1645843029430,0.8289,39565.0,39554.0,0.22764132]
[1645843029633,0.00035135,39564.0,39554.0,0.22764132]
[1645843030430,0.8289,39565.0,39554.0,0.22726615]
[1645843030730,0.00035135,39564.0,39554.0,0.22764132]
[1645843030930,0.00035135,39564.0,39554.0,0.22756062]
[1645843031777,0.0101,39564.0,39554.0,0.22718545]
[1645843031977,0.01045138,39564.0,39554.0,0.22756063]
[1645843032185,0.00035138,39564.0,39554.0,0.22756063]
[1645843032978,0.8289,39565.0,39554.0,0.22718545]
[1645843033178,0.00035138,39564.0,39554.0,0.22756063]
[1645843034180,0.8289,39565.0,39554.0,0.22718545]
[1645843034379,0.00035138,39564.0,39554.0,0.22756063]
[1645843035419,0.8289,39565.0,39554.0,0.22756063]
[1645843035618,0.00035138,39564.0,39554.0,0.22856063]
[1645843036419,0.8289,39565.0,39554.0,0.22818545]
[1645843036620,0.00035138,39564.0,39554.0,0.22856063]
[1645843036820,0.00035138,39564.0,39554.0,0.22756063]
[1645843037622,0.0101,39566.0,39565.0,0.00012299]
[1645843037923,0.43897418,39568.0,39565.0,0.00012299]
[1645843039766,0.43997418,39568.0,39565.0,0.00012299]
[1645843040967,0.19287418,39568.0,39565.0,0.00012299]
[1645843041570,0.19387418,39568.0,39565.0,0.00012299]
[1645843042769,0.19426868,39568.0,39565.0,0.00012299]
[1645843043019,0.24326868,39568.0,39565.0,0.00012299]
[1645843043219,0.19326868,39568.0,39565.0,0.00012299]
[1645843043621,0.19287418,39568.0,39565.0,0.00012299]
[1645843044021,0.19326868,39568.0,39565.0,0.00012299]
[1645843044422,0.7688,39566.0,39565.0,0.00012299]
[1645843044622,0.3457505,39566.0,39565.0,0.00012299]
[1645843044824,0.3957505,39566.0,39565.0,0.00012299]
[1645843045621,1.1655505,39566.0,39565.0,0.00012299]
[1645843047571,1.1665505,39566.0,39565.0,0.00012299]
[1645843048472,1.1645505,39566.0,39565.0,0.00012299]
[1645843049675,0.051,39566.0,39565.0,0.00012299]
[1645843050077,0.001,39566.0,39565.0,0.00012299]
[1645843050824,0.00039451,39567.0,39565.0,0.00012299]
[1645843051019,0.19287418,39568.0,39565.0,0.00012299]
[1645843051219,0.00038698,39567.0,39565.0,0.00012299]
[1645843052017,0.24387418,39568.0,39565.0,0.00012299]
[1645843052418,0.24426115,39568.0,39565.0,0.00012299]
[1645843052822,0.24326115,39568.0,39565.0,0.00012299]
[1645843053420,0.24287418,39568.0,39565.0,0.00012299]
[1645843053821,0.24326115,39568.0,39565.0,0.00012299]
[1645843054476,0.24287418,39568.0,39565.0,0.00012299]
[1645843054976,0.24326868,39568.0,39565.0,0.00012299]
[1645843055676,0.051,39568.0,39565.0,0.00012299]
[1645843055877,0.001,39568.0,39565.0,0.00012299]
[1645843056081,0.0013945,39568.0,39565.0,0.00012299]
[1645843056982,0.76158489,39574.0,39565.0,0.00012299]
[1645843057187,0.47018265,39576.0,39565.0,0.00012299]
[1645843057188,0.0001246,39568.0,39565.0,0.00012299]
[1645843057384,0.0001246,39568.0,39565.0,0.07588299]
[1645843057681,0.0001246,39568.0,39565.0,0.28933254]
[1645843057920,5e-05,39568.0,39566.0,0.58998755]
[1645843058126,0.001,39574.0,39570.0,0.17528765]
[1645843058425,0.001,39574.0,39573.0,0.501698]
[1645843058625,0.001,39574.0,39573.0,0.82679724]
[1645843058824,0.001,39574.0,39573.0,0.764698]
[1645843059021,0.21158265,39588.0,39573.0,0.764698]
[1645843059222,0.21158265,39588.0,39580.0,0.23764897]
[1645843059823,0.21158265,39589.0,39580.0,0.23764897]
[1645843060423,0.21158265,39589.0,39577.0,0.0506]
[1645843060629,0.21158265,39587.0,39577.0,0.0506]
[1645843060923,0.21158265,39586.0,39577.0,0.0506]
[1645843061327,0.21158265,39590.0,39577.0,0.0506]
[1645843061773,0.001,39586.0,39577.0,0.07576]
[1645843061978,0.001,39586.0,39577.0,0.0506]
[1645843061979,0.00039586,39585.0,39577.0,0.0506]
[1645843062872,0.001,39586.0,39577.0,0.0506]
[1645843063073,0.21158265,39590.0,39578.0,0.2756163]
[1645843063279,0.1942,39596.0,39580.0,0.1]
[1645843063280,0.00034341,39583.0,39580.0,0.1]
[1645843063473,0.00034341,39583.0,39581.0,0.3457505]
[1645843064074,0.38511329,39594.0,39582.0,0.17340187]
[1645843064276,0.18681379,39594.0,39583.0,0.34415856]
[1645843064475,0.00034341,39584.0,39583.0,0.34415856]
[1645843064674,0.00034341,39584.0,39582.0,0.34415856]
[1645843065276,0.18681379,39594.0,39582.0,0.33915856]
[1645843066731,0.18681379,39594.0,39586.0,0.0002726]
[1645843067732,0.75,39593.0,39582.0,0.15590505]
[1645843067931,0.00039581,39592.0,39587.0,0.00039586]
[1645843068933,0.75,39593.0,39581.0,0.001]
[1645843069668,0.75,39593.0,39580.0,0.34427002]
[1645843069967,0.20847533,39588.0,39580.0,0.34427002]
[1645843070168,0.20847533,39588.0,39579.0,0.376538]
[1645843070468,0.20847533,39588.0,39581.0,0.376538]
[1645843070667,0.20847533,39588.0,39580.0,0.34427002]
[1645843070872,0.20847533,39588.0,39578.0,0.34427002]
[1645843072671,0.20847533,39588.0,39581.0,0.00039739]
[1645843073519,0.00039729,39590.0,39581.0,0.00039739]
[1645843073722,0.75,39593.0,39578.0,0.34427002]
[1645843073924,0.75,39593.0,39583.0,0.00039738]
[1645843074119,0.0003973,39590.0,39583.0,0.00039738]
[1645843074520,0.17729716,39587.0,39583.0,0.00039738]
[1645843074919,0.17729716,39587.0,39578.0,0.34427002]
[1645843075119,0.17729716,39587.0,39583.0,0.00039737]
[1645843076120,0.17729716,39587.0,39578.0,0.34527002]
[1645843076424,0.17729716,39587.0,39583.0,0.00039708]
[1645843077277,0.17729716,39587.0,39578.0,0.34427002]
[1645843077479,0.17729716,39587.0,39583.0,0.00039708]
[1645843077778,0.17229716,39587.0,39583.0,0.00039708]
[1645843078579,0.17229716,39587.0,39578.0,0.34527002]
[1645843078779,0.17229716,39587.0,39583.0,0.00039708]
[1645843078983,0.1127,39592.0,39583.0,0.00039708]
[1645843078984,0.108097,39592.0,39583.0,0.00039708]
[1645843079679,0.75,39593.0,39581.0,0.34427002]
[1645843079882,0.93058615,39593.0,39581.0,0.57281819]
[1645843080717,0.93058615,39593.0,39581.0,0.34427002]
[1645843081117,0.93058615,39593.0,39579.0,0.36943002]
[1645843081321,0.00010228,39592.0,39579.0,0.36943002]
[1645843081719,0.00010228,39592.0,39580.0,0.23230264]
[1645843081921,0.00010228,39592.0,39581.0,0.34427002]
[1645843082219,0.18058615,39593.0,39581.0,0.34427002]
[1645843082420,0.00010228,39592.0,39581.0,0.34427002]
[1645843083320,0.18058615,39593.0,39581.0,0.34427002]
[1645843083519,0.18058615,39593.0,39585.0,0.00037619]
[1645843083719,0.00033993,39592.0,39585.0,0.00037619]
[1645843084586,0.18058615,39593.0,39581.0,0.34427002]
[1645843084987,0.00039729,39592.0,39586.0,0.00039735]
[1645843085685,0.00039729,39592.0,39581.0,0.34427002]
[1645843085884,0.19087614,39593.0,39586.0,0.00239735]
[1645843086085,0.0003973,39592.0,39586.0,0.00239735]
[1645843086985,0.19087614,39593.0,39586.0,0.002]
[1645843087186,0.0003973,39592.0,39586.0,0.00239735]
[1645843087589,0.0003973,39592.0,39586.0,0.00039735]
[1645843088224,0.19087614,39593.0,39581.0,0.002]
[1645843088423,0.0003973,39592.0,39586.0,0.00039735]
[1645843089429,0.19087614,39593.0,39581.0,0.376538]
[1645843089634,0.0003973,39592.0,39586.0,0.00039735]
[1645843090528,0.19087614,39593.0,39581.0,0.002]
[1645843090728,0.19087614,39593.0,39586.0,0.00039735]
[1645843090928,0.0003973,39592.0,39586.0,0.00039735]
[1645843091775,0.19087614,39593.0,39581.0,0.002]
[1645843091974,0.0003973,39592.0,39586.0,0.00039735]
[1645843092373,0.18627344,39593.0,39586.0,0.00039735]
[1645843092970,0.18627344,39593.0,39581.0,0.002]
[1645843093171,0.18627344,39593.0,39580.0,0.43210264]
[1645843093373,0.18127344,39593.0,39580.0,0.43210264]
[1645843094173,0.18127344,39593.0,39580.0,0.1998]
[1645843095422,0.18127344,39593.0,39578.0,0.19570726]
[1645843095622,0.18127344,39593.0,39585.0,0.00039736]
[1645843096625,0.18127344,39593.0,39578.0,0.19570726]
[1645843096825,0.01028999,39593.0,39587.0,0.00031372]
[1645843097028,0.01028999,39593.0,39588.0,0.427138]
[1645843097626,0.01028999,39593.0,39587.0,0.00031372]
[1645843097627,0.4828634,39587.0,39583.0,0.34427002]
[1645843097827,0.4828634,39587.0,39583.0,0.427138]
[1645843098029,0.4828634,39587.0,39583.0,0.77140802]
[1645843098429,0.4828634,39587.0,39583.0,0.98449686]
[1645843099681,0.4778634,39587.0,39583.0,0.98449686]
[1645843099884,0.4778634,39587.0,39583.0,0.98649686]
[1645843100083,0.4778634,39587.0,39583.0,1.01165686]
[1645843100281,0.4778634,39587.0,39586.0,0.21308884]
[1645843100483,0.4778634,39587.0,39586.0,0.64022684]
[1645843101282,0.4778634,39587.0,39586.0,1.00844454]
[1645843101482,0.4778634,39587.0,39586.0,0.98328454]
[1645843101880,0.4778634,39587.0,39586.0,0.64222684]
[1645843102081,0.4778634,39587.0,39586.0,0.98528454]
[1645843102283,0.4778634,39587.0,39586.0,0.26568884]
[1645843102485,0.4778634,39587.0,39586.0,0.429138]
[1645843102929,0.4778634,39587.0,39586.0,0.378538]
[1645843103131,0.70652173,39587.0,39585.0,0.00039741]
[1645843103829,0.70652173,39587.0,39585.0,0.001]
[1645843105035,0.70652173,39587.0,39582.0,0.21308884]
[1645843105232,0.70652173,39587.0,39584.0,0.00039711]
[1645843106232,0.70652173,39587.0,39582.0,0.21308884]
[1645843106435,0.70652173,39587.0,39584.0,0.00039712]
[1645843106874,0.70652173,39587.0,39580.0,0.47960199]
[1645843106875,1.3430577,39586.0,39580.0,0.47960199]
[1645843107076,1.3430577,39586.0,39580.0,0.21308884]
[1645843107077,0.1006,39585.0,39580.0,0.21308884]
[1645843107275,0.1006,39585.0,39575.0,0.21308884]
[1645843107276,0.3531477,39584.0,39575.0,0.21308884]
[1645843107476,0.8194,39583.0,39574.0,0.21308884]
[1645843107677,0.18723399,39576.0,39573.0,0.21308884]
[1645843107873,0.18723399,39576.0,39575.0,0.001]
[1645843108373,0.0506,39577.0,39575.0,0.001]
[1645843109074,0.0506,39577.0,39572.0,0.21308884]
[1645843109373,0.20253048,39576.0,39572.0,0.21308884]
[1645843109774,0.20253048,39576.0,39570.0,0.21308884]
[1645843109975,0.20253048,39576.0,39572.0,0.00039709]
[1645843110178,0.20253048,39576.0,39572.0,0.21348593]
[1645843110422,0.20253048,39576.0,39572.0,0.00039709]
[1645843111024,0.20253048,39576.0,39571.0,0.21308884]
[1645843111224,0.20253048,39576.0,39570.0,0.21308884]
[1645843111422,0.3430577,39575.0,39568.0,0.21308884]
[1645843111621,0.3430577,39575.0,39567.0,0.21308884]
[1645843111822,0.3430577,39575.0,39566.0,0.21308884]
[1645843112021,0.19793732,39569.0,39566.0,0.21308884]
[1645843112223,0.19793732,39569.0,39565.0,0.21408884]
[1645843113024,0.19793732,39569.0,39564.0,0.21308884]
[1645843113424,0.0506,39571.0,39564.0,0.21308884]
[1645843113825,0.0506,39571.0,39564.0,0.002]
[1645843114271,0.0506,39571.0,39564.0,0.21508884]
[1645843114472,0.25885639,39571.0,39564.0,0.21508884]
[1645843114871,0.25885639,39571.0,39566.0,0.00039321]
[1645843115671,0.3430577,39570.0,39566.0,0.00039321]
[1645843115872,0.25885639,39571.0,39563.0,0.21308884]
[1645843116073,0.25885639,39571.0,39567.0,0.0003932]
[1645843116374,0.0506,39571.0,39567.0,0.0003932]
[1645843116973,0.01009,39575.0,39564.0,0.21308884]
[1645843117173,0.3531477,39575.0,39564.0,0.21308884]
[1645843117373,0.3531477,39575.0,39561.0,0.26651315]
[1645843117374,0.31291825,39580.0,39568.0,0.21565513]
[1645843117573,0.3430577,39583.0,39568.0,0.42874397]
[1645843117774,0.1986,39584.0,39569.0,0.21308884]
[1645843118030,0.001,39575.0,39569.0,0.21308884]
[1645843119228,0.18193812,39581.0,39569.0,0.21308884]
[1645843119627,0.18193812,39581.0,39570.0,0.21348544]
[1645843119828,0.18193812,39581.0,39571.0,0.21308884]
[1645843120827,0.18193812,39581.0,39574.0,0.00039657]
[1645843121872,0.18293812,39581.0,39571.0,0.21308884]
[1645843122075,0.18293812,39581.0,39576.0,0.00039656]
[1645843122676,0.65,39580.0,39571.0,0.20725333]
[1645843123278,0.65,39580.0,39569.0,0.00026859]
[1645843124374,0.65,39580.0,39573.0,0.00027289]
[1645843125423,0.65,39580.0,39568.0,0.48216828]
[1645843125622,0.65,39580.0,39574.0,0.00039657]
[1645843126726,0.65,39580.0,39573.0,0.002]
[1645843126925,0.65,39580.0,39574.0,0.00039657]
[1645843127625,0.0802153,39580.0,39574.0,0.00039657]
[1645843127823,0.0802153,39580.0,39569.0,0.001]
[1645843127824,0.0822153,39580.0,39569.0,0.001]
[1645843128024,0.0822153,39580.0,39574.0,0.00039657]
[1645843129027,0.0822153,39580.0,39568.0,0.48216828]
[1645843129280,0.0802153,39580.0,39574.0,0.00038323]
[1645843129876,0.0802153,39580.0,39574.0,0.00138323]
[1645843130274,0.0802153,39580.0,39574.0,0.001]
[1645843130476,0.0802153,39580.0,39574.0,0.00136761]
[1645843131176,0.0802153,39580.0,39574.0,0.00036761]
[1645843131378,0.0802153,39580.0,39570.0,0.26651315]
[1645843131778,0.0802153,39580.0,39574.0,0.00036761]
[1645843131978,0.23106955,39583.0,39574.0,0.23789379]
[1645843132380,0.01009,39585.0,39574.0,0.23789379]
[1645843132783,0.49996115,39586.0,39575.0,0.21328342]
[1645843133024,0.49904957,39586.0,39575.0,0.21328342]
[1645843133224,0.71339259,39586.0,39577.0,0.21328342]
[1645843133426,0.21470419,39586.0,39577.0,0.21328342]
[1645843133826,0.21434302,39586.0,39577.0,0.21328342]
[1645843134025,0.21534302,39586.0,39577.0,0.21328342]
[1645843134324,0.21569269,39586.0,39577.0,0.21328342]
[1645843135125,0.21569269,39586.0,39575.0,0.21328342]
[1645843135126,0.21434302,39586.0,39575.0,0.21328342]
[1645843135525,0.21469269,39586.0,39574.0,0.21364876]
[1645843136323,0.21434302,39586.0,39574.0,0.21328342]
[1645843136672,0.21469268,39586.0,39574.0,0.2136486]
[1645843136874,0.21469268,39586.0,39575.0,0.21328342]
[1645843137474,0.21434302,39586.0,39575.0,0.21328342]
[1645843137675,0.21472717,39586.0,39575.0,0.21328342]
[1645843138275,0.00038415,39586.0,39575.0,0.21328342]
[1645843138681,0.4778634,39587.0,39575.0,0.21328342]
[1645843139076,0.00038415,39586.0,39575.0,0.21328342]
[1645843139879,0.70019371,39587.0,39575.0,0.21328342]
[1645843140078,0.00039618,39586.0,39575.0,0.21328342]
[1645843141128,0.70019371,39587.0,39575.0,0.21328342]
[1645843141333,0.00039618,39586.0,39575.0,0.21328342]
[1645843141928,0.00039618,39586.0,39577.0,0.21328342]
[1645843142328,0.70019371,39587.0,39577.0,0.21328342]
[1645843142527,0.00039618,39586.0,39577.0,0.21328342]
[1645843143229,0.00039618,39586.0,39578.0,0.21328342]
[1645843143429,0.70019371,39587.0,39578.0,0.21328342]
[1645843143729,0.70019371,39587.0,39577.0,0.21328342]
[1645843143730,0.00039647,39586.0,39577.0,0.21328342]
[1645843143936,0.00139647,39586.0,39578.0,0.21328342]
[1645843144782,0.001,39586.0,39578.0,0.11328342]
[1645843144982,0.00139647,39586.0,39578.0,0.11328342]
[1645843145184,0.00039647,39586.0,39578.0,0.11328342]
[1645843145983,0.001,39586.0,39578.0,0.11328342]
[1645843146183,0.00139647,39586.0,39576.0,0.26651315]
[1645843146984,0.00139647,39586.0,39577.0,0.26651315]
[1645843147184,0.4778634,39587.0,39577.0,0.26651315]
[1645843147383,0.00039647,39586.0,39577.0,0.26651315]
[1645843148022,0.00139647,39586.0,39577.0,0.26651315]
[1645843148322,0.001,39586.0,39577.0,0.26651315]
[1645843148523,0.00139647,39586.0,39577.0,0.26651315]
[1645843149127,0.00039647,39586.0,39577.0,0.26651315]
[1645843149524,0.00039647,39586.0,39578.0,0.26651315]
[1645843150725,0.4778634,39587.0,39579.0,0.26651315]
[1645843150924,0.00037005,39586.0,39576.0,0.28912893]
[1645843151125,0.19134437,39586.0,39578.0,0.26670774]
[1645843151525,0.19134437,39586.0,39577.0,0.26670774]
[1645843151983,0.19097432,39586.0,39577.0,0.26670774]
[1645843152180,0.19134437,39586.0,39577.0,0.26670774]
[1645843153080,0.19097432,39586.0,39577.0,0.26670774]
[1645843153280,0.4778634,39587.0,39577.0,0.26670774]
[1645843153483,0.00037005,39586.0,39577.0,0.26670774]
[1645843153680,0.00037005,39586.0,39578.0,0.26670774]
[1645843154287,0.4778634,39587.0,39578.0,0.26670774]
[1645843154482,0.0003962,39586.0,39578.0,0.26670774]
[1645843154682,0.0003962,39586.0,39580.0,0.21335756]
[1645843155083,0.0003962,39586.0,39581.0,0.21335756]
[1645843155537,0.4778634,39587.0,39581.0,0.21335756]
[1645843155739,0.0003962,39586.0,39581.0,0.21335756]
[1645843155942,0.0013962,39586.0,39581.0,0.21335756]
[1645843156337,0.0013962,39586.0,39580.0,0.21335756]
[1645843156738,0.001,39586.0,39581.0,0.21335756]
[1645843156942,0.0013962,39586.0,39581.0,0.21335756]
[1645843157543,0.0013962,39586.0,39582.0,0.21335756]
[1645843157741,0.4778634,39587.0,39583.0,0.3]
[1645843157941,0.4778634,39587.0,39583.0,0.21335756]
[1645843158143,0.4778634,39587.0,39584.0,0.376538]
[1645843158343,0.4778634,39587.0,39585.0,0.21335756]
[1645843158543,0.4778634,39587.0,39586.0,0.58989556]
[1645843158742,0.4778634,39587.0,39586.0,0.79910615]
[1645843158942,0.4778634,39587.0,39586.0,0.58574859]
[1645843159979,0.4778634,39587.0,39586.0,0.58774859]
[1645843161079,0.4778634,39587.0,39586.0,0.80109397]
[1645843161279,0.4778634,39587.0,39586.0,0.20921059]
[1645843161879,0.4778634,39587.0,39586.0,0.58574859]
[1645843162282,0.4778634,39587.0,39586.0,0.20921059]
[1645843162927,0.4778634,39587.0,39585.0,0.21334538]
[1645843163129,0.4778634,39587.0,39586.0,0.21334538]
[1645843163730,0.4778634,39587.0,39585.0,0.21334538]
[1645843163931,0.4778634,39587.0,39586.0,0.001]
[1645843164131,0.4778634,39587.0,39586.0,0.21434538]
[1645843165135,0.4778634,39587.0,39586.0,0.21334538]
[1645843166135,0.4778634,39587.0,39586.0,0.21434538]
[1645843167378,0.4778634,39587.0,39586.0,0.21334538]
[1645843167976,0.4798634,39587.0,39586.0,0.21334538]
[1645843169178,0.4798634,39587.0,39586.0,0.58988338]
[1645843169779,0.4798634,39587.0,39586.0,0.376538]
[1645843170083,0.4798634,39587.0,39586.0,0.377538]
[1645843170280,0.4798634,39587.0,39586.0,0.21437076]
[1645843170534,0.4798634,39587.0,39586.0,0.59090876]
[1645843170735,0.4798634,39587.0,39586.0,0.72479122]
[1645843170934,0.4798634,39587.0,39586.0,0.99149896]
[1645843171139,0.4798634,39587.0,39586.0,1.09544219]
[1645843171334,0.01028999,39593.0,39586.0,1.09544219]
[1645843171335,0.01028999,39593.0,39587.0,1.0]
[1645843171535,0.01028999,39593.0,39587.0,1.69658897]
[1645843171536,0.00012454,39588.0,39587.0,1.69658897]
[1645843171735,0.00012454,39588.0,39587.0,1.74718897]
[1645843171933,0.00012454,39588.0,39587.0,2.89009078]
[1645843171934,2.797e-05,39588.0,39587.0,2.89009078]
[1645843172333,0.01028999,39593.0,39589.0,0.376538]
[1645843172536,0.01028999,39593.0,39592.0,0.66683159]
[1645843172736,0.01028999,39593.0,39592.0,1.09396959]
[1645843172933,0.01028999,39593.0,39592.0,0.77396978]
[1645843173433,0.01028999,39593.0,39592.0,0.97376978]
[1645843174036,0.01009,39609.0,39593.0,1.0]
[1645843174282,0.1168,39613.0,39595.0,0.64311504]
[1645843174481,0.1168,39613.0,39595.0,1.04054682]
[1645843174680,0.1168,39613.0,39595.0,0.77396978]
[1645843174881,18.42371563,39611.0,39599.0,0.063132]
[1645843175080,18.42371563,39611.0,39600.0,0.72336978]
[1645843175081,0.00158997,39603.0,39600.0,0.72336978]
[1645843175287,0.18909727,39610.0,39600.0,0.376538]
[1645843175482,0.18909727,39610.0,39600.0,0.72336978]
[1645843176082,0.18909727,39610.0,39600.0,0.34783178]
[1645843177083,0.18909727,39610.0,39601.0,0.376538]
[1645843177283,0.18909727,39610.0,39600.0,0.34683178]
[1645843177485,0.18669463,39604.0,39601.0,0.376538]
[1645843178125,18.42371563,39611.0,39600.0,0.002]
[1645843178126,18.42371563,39611.0,39600.0,0.34883178]
[1645843178521,18.42371563,39611.0,39601.0,0.00027541]
[1645843178924,0.23682644,39610.0,39601.0,0.00027541]
[1645843179124,0.21386612,39609.0,39601.0,0.00027541]
[1645843179321,0.22820419,39608.0,39601.0,0.00027541]
[1645843179523,0.19464517,39597.0,39592.0,0.2124]
[1645843181025,0.19464517,39597.0,39593.0,0.0003976]
[1645843181225,0.00039747,39605.0,39593.0,0.0003976]
[1645843181877,0.12429,39607.0,39592.0,0.2124]
[1645843182075,0.12429,39607.0,39597.0,0.00039727]
[1645843182275,0.00039719,39605.0,39597.0,0.00039727]
[1645843182477,0.23812455,39598.0,39597.0,0.00039727]
[1645843183079,0.23812455,39598.0,39593.0,0.002]
[1645843183275,0.23812455,39598.0,39596.0,0.00039728]
[1645843183675,0.00039718,39605.0,39596.0,0.00039728]
[1645843184077,0.001,39603.0,39596.0,0.00139728]
[1645843184275,0.001,39603.0,39596.0,0.001]
[1645843184475,0.001,39603.0,39599.0,0.00039726]
[1645843184875,0.21640834,39600.0,39599.0,0.00039726]
[1645843185531,0.21640834,39600.0,39592.0,0.2124]
[1645843185733,0.21640834,39600.0,39598.0,0.00039756]
[1645843186830,0.001,39605.0,39592.0,0.2124]
[1645843187034,0.00139749,39605.0,39597.0,0.00039757]
[1645843187231,0.00039749,39605.0,39597.0,0.00039757]
[1645843187833,0.2014474,39602.0,39597.0,0.00039757]
[1645843188038,0.2014474,39602.0,39597.0,0.001]
[1645843188238,0.12429,39607.0,39599.0,0.00039755]
[1645843188239,0.00039749,39605.0,39599.0,0.00039755]
[1645843189276,0.1975504,39605.0,39600.0,0.00027558]
[1645843189975,0.1985504,39605.0,39600.0,0.00027558]
[1645843190376,0.1985504,39605.0,39597.0,0.001]
[1645843190576,0.1985504,39605.0,39601.0,0.00027557]
[1645843191376,0.1975504,39605.0,39601.0,0.00027557]
[1645843191576,0.1975504,39605.0,39596.0,0.01009]
[1645843191775,0.1975504,39605.0,39601.0,0.00039759]
[1645843192678,0.1975504,39605.0,39596.0,0.01009]
[1645843192922,0.1975504,39605.0,39601.0,0.00036187]
[1645843193927,0.1975504,39605.0,39595.0,0.35692178]
[1645843194124,0.1985504,39605.0,39601.0,0.00036187]
[1645843195124,0.1985504,39605.0,39596.0,0.001]
[1645843195324,0.1985504,39605.0,39601.0,0.00036187]
[1645843195929,0.00034911,39607.0,39602.0,0.376538]
[1645843196125,0.001,39605.0,39602.0,0.376538]
[1645843196324,0.001,39605.0,39601.0,0.00036187]
[1645843196325,0.001,39605.0,39597.0,0.34683178]
[1645843196525,0.001,39605.0,39601.0,0.00038027]
[1645843196778,0.001,39605.0,39602.0,0.376538]
[1645843196979,0.001,39605.0,39601.0,0.00038027]
[1645843197182,0.18277971,39607.0,39601.0,0.00038027]
[1645843197578,0.18243058,39607.0,39598.0,0.01009]
[1645843197778,0.1827756,39607.0,39601.0,0.00037903]
[1645843197979,0.1827756,39607.0,39601.0,0.00137903]
[1645843198379,0.17618738,39607.0,39601.0,0.00137903]
[1645843198682,0.22820419,39608.0,39602.0,0.376538]
[1645843198881,0.001,39612.0,39601.0,0.00137903]